[Event "Vegagatan U1800-A"]
[Site "Goteborgs Schackcentrum, Vegatan 20, Gothenburg, Sweden"]
[Date "2025.05.03"]
[Round "4.4"]
[White "Zejak, Branislav"]
[Black "Murugaraja, Yogeshwer"]
[Result "1/2-1/2"]
[TimeControl "30 minutes + 30 seconds per move from move one"]
[WhiteFideId "1722565"]
[BlackFideId "1779389"]
[WhiteElo "1768"]
[BlackElo "1762"]

1. c4 {[%clk 00:30:46]} {[%emt 00:00:14]} Nf6 {[%clk 00:30:49]} {[%emt
00:00:11]} 2. Nc3 {[%clk 00:30:47]} {[%emt 00:00:28]} g6 {[%clk 00:31:07]}
{[%emt 00:00:12]} 3. g3 {[%clk 00:30:35]} {[%emt 00:00:43]} Bg7 {[%clk
00:31:28]} {[%emt 00:00:09]} 4. Bg2 {[%clk 00:30:45]} {[%emt 00:00:19]} c5
{[%clk 00:31:40]} {[%emt 00:00:19]} 5. e4 {[%clk 00:30:50]} {[%emt 00:00:25]}
Nc6 {[%clk 00:32:02]} {[%emt 00:00:08]} 6. d3 {[%clk 00:30:48]} {[%emt
00:00:31]} O-O {[%clk 00:32:14]} {[%emt 00:00:18]} 7. Nge2 {[%clk 00:31:14]}
{[%emt 00:00:05]} e5 {[%clk 00:32:35]} {[%emt 00:00:08]} 8. O-O {[%clk
00:31:14]} {[%emt 00:00:30]} d6 {[%clk 00:32:58]} {[%emt 00:00:08]} 9. a3
{[%clk 00:28:35]} {[%emt 00:03:10]} Be6 {[%clk 00:32:57]} {[%emt 00:00:28]} 10.
Nd5 {[%clk 00:27:32]} {[%emt 00:01:34]} Qd7 {[%clk 00:33:04]} {[%emt 00:00:22]}
11. Bg5 {[%clk 00:26:05]} {[%emt 00:01:57]} Ne8 {[%clk 00:31:16]} {[%emt
00:02:18]} 12. Qd2 {[%clk 00:22:32]} {[%emt 00:04:06]} Bh3 {[%clk 00:30:31]}
{[%emt 00:01:14]} 13. b4 {[%clk 00:21:08]} {[%emt 00:01:54]} Bxg2 {[%clk
00:30:33]} {[%emt 00:00:28]} 14. Kxg2 {[%clk 00:21:23]} {[%emt 00:00:15]} cxb4
{[%clk 00:30:54]} {[%emt 00:00:09]} 15. axb4 {[%clk 00:21:25]} {[%emt
00:00:28]} f5 {[%clk 00:29:44]} {[%emt 00:01:35]} 16. Nb6 {[%clk 00:20:40]}
{[%emt 00:01:20]} axb6 {[%clk 00:29:19]} {[%emt 00:00:54]} 17. Rxa8 {[%clk
00:21:01]} {[%emt 00:00:10]} fxe4 {[%clk 00:29:41]} {[%emt 00:00:07]} 18. dxe4
{[%clk 00:16:42]} {[%emt 00:04:50]} Qf7 {[%clk 00:29:18]} {[%emt 00:00:45]} 19.
f3 {[%clk 00:16:33]} {[%emt 00:00:47]} Qxc4 {[%clk 00:29:07]} {[%emt 00:00:40]}
20. Rf2 {[%clk 00:15:04]} {[%emt 00:02:00]} Kf7 {[%clk 00:26:09]} {[%emt
00:03:27]} 21. Kg1 {[%clk 00:09:41]} {[%emt 00:05:54]} Nf6 {[%clk 00:25:02]}
{[%emt 00:01:36]} 22. Rxf8+ {[%clk 00:09:44]} {[%emt 00:00:28]} Kxf8 {[%clk
00:24:53]} {[%emt 00:00:38]} 23. Qxd6+ {[%clk 00:09:37]} {[%emt 00:00:38]} Kf7
{[%clk 00:24:55]} {[%emt 00:00:27]} 24. Qc7+ {[%clk 00:07:48]} {[%emt
00:02:20]} Kf8 {[%clk 00:24:39]} {[%emt 00:00:45]} 25. Qd6+ {[%clk 00:07:20]}
{[%emt 00:00:59]} Kf7 {[%clk 00:24:59]} {[%emt 00:00:09]} 26. Qc7+ {[%clk
00:07:25]} {[%emt 00:00:25]} Kf8 {[%clk 00:25:25]} {[%emt 00:00:05]} 27. Qd6+
{[%clk 00:07:09]} {[%emt 00:00:47]} Kf7 {[%clk 00:25:49]} {[%emt 00:00:05]} 28.
f4 {[%clk 00:05:45]} {[%emt 00:00:17]} 1/2-1/2